[Event "Kuwait Championship Stage-I 2024"]
[Site "Qadsiya"]
[Date "2024.01.24"]
[Round "3.11"]
[White "Khalaf, Ali"]
[Black "Almanaseer, Talal"]
[Result "0-1"]
[ECO "D00"]
[WhiteElo "1426"]
[BlackElo "1249"]
[Annotator "NA"]
[PlyCount "112"]
[EventDate "2024.01.22"]
[EventType "swiss"]
[EventCountry "KUW"]
[SourceTitle "playchess.com"]
[Source "ChessBase"]
[SourceQuality "1"]
[TimeControl "5400+30"]

1. f4 {[%emt 0:08:57]} d5 {[%emt 0:02:14]} 2. Nf3 {[%emt 0:00:25]} Nf6 {[%emt 0:00:45]} 3. e3 {[%emt 0:00:08]} e6 {[%emt 0:07:58]} 4. d4 {[%emt 0:00:50]} Be7 {[%emt 0:00:39]} 5. Bd3 {[%emt 0:01:20]} c5 {[%emt 0:01:07]} 6. c3 {[%emt 0:00:13]} O-O {[%emt 0:01:04]} 7. O-O {[%emt 0:01:00]} b6 {[%emt 0:02:47]} 8. Qe2 {[%emt 0:15:32]} a5 {[%emt 0:04:34]} 9. Ne5 {[%emt 0:04:12]} Qc7 {[%emt 0:02:48]} 10. Na3 {[%emt 0:02:00]} Ba6 {[%emt 0:04:30]} 11. Nb5 {[%emt 0:04:56]} Qb7 {[%emt 0:00:40]} 12. a4 {[%emt 0:02:02]} Nc6 {[%emt 0:04:25]} 13. Rf3 {[%emt 0:03:01]} Nxe5 {[%emt 0:00:54]} 14. fxe5 {[%emt 0:00:25]} Ne4 {[%emt 0:00:46]} 15. Rh3 {[%emt 0:09:44]} f5 {[%emt 0:08:20]} 16. Bxe4 {[%emt 0:03:42]} fxe4 {[%emt 0:00:53]} 17. Qh5 {[%emt 0:02:21]} h6 {[%emt 0:02:14]} 18. Qg6 {[%emt 0:01:17]} Bg5 {[%emt 0:03:07]} 19. Qxe6+ {[%emt 0:00:32]} Kh7 {[%emt 0:02:58]} 20. Bd2 {[%emt 0:08:32]} Rae8 {[%emt 0:01:32]} 21. Qg4 {[%emt 0:03:34]} Qf7 {[%emt 0:01:11]} 22. Qe2 {[%emt 0:00:19]} Bxb5 {[%emt 0:20:11]} 23. axb5 {[%emt 0:00:34]} cxd4 {[%emt 0:00:28]} 24. cxd4 {[%emt 0:03:07]} Qe6 {[%emt 0:19:36]} 25. Rf1 {[%emt 0:06:38]} Rf7 {[%emt 0:02:06]} 26. Rxf7 Qxf7 {[%emt 0:00:07]} 27. Qf2 {[%emt 0:05:09]} Qe6 {[%emt 0:01:58]} 28. Bc3 {[%emt 0:02:10]} Re7 {[%emt 0:00:13]} 29. Qe2 {[%emt 0:04:56]} Rf7 {[%emt 0:00:28]} 30. Be1 {[%emt 0:01:37]} Qf5 {[%emt 0:01:04]} 31. Bh4 {[%emt 0:01:25]} Bxh4 {[%emt 0:02:10]} 32. Rxh4 {[%emt 0:00:05]} Kg8 {[%emt 0:01:13]} 33. Rf4 {[%emt 0:01:07]} Qe6 {[%emt 0:00:10]} 34. Rxf7 {[%emt 0:01:11]} Qxf7 {[%emt 0:00:06]} 35. Qg4 {[%emt 0:01:19]} Qe7 {[%emt 0:00:44]} 36. Qc8+ {[%emt 0:00:50]} Kh7 {[%emt 0:00:19]} 37. Qc3 {[%emt 0:01:15]} Kg8 {[%emt 0:00:35]} 38. Qc6 {[%emt 0:01:20]} Qb4 {[%emt 0:00:19]} 39. Qxd5+ {[%emt 0:00:17]} Kh7 {[%emt 0:00:12]} 40. Qxe4+ {[%emt 0:00:05]} Kh8 {[%emt 0:00:24]} 41. h3 {[%emt 0:00:28]} Qxb2 {[%emt 0:01:26]} 42. e6 {[%emt 0:00:24]} Qc1+ {[%emt 0:00:07]} 43. Kh2 {[%emt 0:00:09]} Qc7+ {[%emt 0:00:08]} 44. Qe5 {[%emt 0:00:11]} Qxe5+ {[%emt 0:00:44]} 45. dxe5 {[%emt 0:00:06]} Kg8 {[%emt 0:00:08]} 46. Kg3 {[%emt 0:03:27]} a4 {[%emt 0:00:09]} 47. Kf4 {[%emt 0:00:10]} a3 {[%emt 0:00:15]} 48. Kf5 {[%emt 0:00:30]} Kf8 {[%emt 0:00:11]} 49. Kg6 {[%emt 0:00:54]} a2 {[%emt 0:00:24]} 50. e7+ {[%emt 0:00:17]} Kxe7 {[%emt 0:00:15]} 51. Kxg7 {[%emt 0:00:09]} a1=Q {[%emt 0:00:18]} 52. Kxh6 {[%emt 0:00:15]} Qxe5 {[%emt 0:00:21]} 53. h4 {[%emt 0:01:08]} Qxe3+ {[%emt 0:00:17]} 54. Kg6 {[%emt 0:00:07]} Qd3+ {[%emt 0:00:14]} 55. Kh6 {[%emt 0:00:20]} Kf6 {[%emt 0:00:24]} 56. h5 {[%emt 0:00:16]} Qg3 {[%emt 0:00:19]} 0-1

[Event "Kuwait Championship Stage-I 2024"]
[Site "Qadsiya"]
[Date "2024.01.24"]
[Round "3.12"]
[White "Aljadi, Hussain"]
[Black "Alasfour, Zaid"]
[Result "0-1"]
[ECO "D09"]
[WhiteElo "1419"]
[BlackElo "1188"]
[Annotator "NA COMBH"]
[PlyCount "82"]
[EventDate "2024.01.22"]
[EventType "swiss"]
[EventCountry "KUW"]
[SourceTitle "playchess.com"]
[Source "ChessBase"]
[SourceQuality "1"]
[TimeControl "5400+30"]

1. d4 {[%emt 0:00:40]} d5 {[%emt 0:00:09]} 2. c4 {[%emt 0:00:07]} e5 {[%emt 0:00:10]} 3. dxe5 {[%emt 0:00:44]} d4 {[%emt 0:00:05]} 4. Nf3 {[%emt 0:00:25]} Nc6 {[%emt 0:00:14]} 5. g3 {[%emt 0:00:15]} Bg4 {[%emt 0:01:43]} 6. Bg2 {[%emt 0:00:18]} Bxf3 {[%emt 0:00:12]} 7. Bxf3 {[%emt 0:00:26]} Nxe5 {[%emt 0:00:12]} 8. Bxb7 {[%emt 0:00:39]} Rb8 {[%emt 1:31:45]} 9. Bg2 {[%emt 0:05:14]} Bb4+ {[%emt 0:00:00]} 10. Bd2 {[%emt 0:01:43]} Nf6 {[%emt 0:00:00]} 11. Bxb4 {[%emt 0:06:09]} Rxb4 {[%emt 0:00:00]} 12. b3 {[%emt 0:00:40]} O-O {[%emt 0:00:00]} 13. O-O {[%emt 0:00:17]} c5 {[%emt 0:00:00]} 14. Nd2 {[%emt 0:05:06]} Re8 {[%emt 0:00:00]} 15. Qc2 {[%emt 0:06:44]} Rb6 {[%emt 0:00:00]} 16. Ne4 {[%emt 0:03:09]} Nxe4 {[%emt 0:00:00]} 17. Bxe4 {[%emt 0:00:16]} Rh6 {[%emt 0:00:00]} 18. Bg2 {[%emt 0:04:37]} Ng4 {[%emt 0:00:00]} 19. h3 {[%emt 0:00:53]} Nf6 {[%emt 0:00:00]} 20. Rad1 {[%emt 0:03:03]} Qe7 {[%emt 0:00:00]} 21. Rfe1 {[%emt 0:01:38]} Nd7 {[%emt 0:00:00]} 22. Kf1 {[%emt 0:26:37]} Rf6 {[%emt 0:00:00]} 23. Qd2 {[%emt 0:02:51]} Qe3 {[%emt 0:00:00]} 24. Qxe3 {[%emt 0:01:07]} Rxe3 {[%emt 0:00:00]} 25. Rd3 {[%emt 0:01:32]} Ne5 {[%emt 0:00:00]} 26. Rxe3 {[%emt 0:00:28]} dxe3 {[%emt 0:00:00]} 27. f4 {[%emt 0:00:49]} g5 {[%emt 0:00:00]} 28. Bf3 {[%emt 0:09:06]} gxf4 {[%emt 0:00:00]} 29. gxf4 {[%emt 0:00:10]} Rxf4 {[%emt 0:00:00]} 30. Kg2 {[%emt 0:00:58]} Rd4 {[%emt 0:00:00]} 31. Kg3 {[%emt 0:01:47]} f5 {[%emt 0:00:00]} 32. Bh5 {[%emt 0:01:23]} Kg7 {[%emt 0:00:00]} 33. Rf1 {[%emt 0:01:07]} Kf6 {[%emt 0:00:00]} 34. h4 {[%emt 0:04:16]} Nd7 {[%emt 0:00:00]} 35. Rf4 {[%emt 0:02:33]} Ke5 {[%emt 0:00:00]} 36. Rf1 {[%emt 0:02:30]} Nf6 {[%emt 0:00:00]} 37. Bf3 {[%emt 0:00:33]} f4+ {[%emt 0:00:00]} 38. Kg2 {[%emt 0:00:26]} Rd2 {[%emt 0:00:00]} 39. Ra1 {[%emt 0:05:04]} a5 {[%emt 0:00:00]} 40. Kf1 {[%emt 0:00:54]} Nd7 {[%emt 0:00:00]} 41. Ke1 {[%emt 0:00:16]} Nb6 {[%emt 0:16:30]} 0-1

[Event "Kuwait Championship Stage-I 2024"]
[Site "Qadsiya"]
[Date "2024.01.26"]
[Round "4.1"]
[White "Alsaqer, Meshal"]
[Black "Hashem, Khaled"]
[Result "1-0"]
[ECO "D03"]
[WhiteElo "1753"]
[BlackElo "1868"]
[Annotator "NA RC COMBH"]
[PlyCount "67"]
[EventDate "2024.01.22"]
[EventType "swiss"]
[EventCountry "KUW"]
[SourceTitle "playchess.com"]
[Source "ChessBase"]
[SourceQuality "1"]
[TimeControl "5400+30"]

1. d4 {[%emt 0:00:17]} Nf6 {[%emt 0:00:16]} 2. Bg5 {[%emt 0:00:25]} d5 {[%emt 0:03:44]} 3. Nf3 {[%emt 0:00:51]} g6 {[%emt 0:04:08]} 4. Bxf6 {[%emt 0:02:49]} exf6 {[%emt 0:00:02]} 5. e3 {[%emt 0:00:10]} Bg7 {[%emt 0:00:03]} 6. c4 {[%emt 0:00:15]} c6 {[%emt 0:00:47]} 7. Nc3 {[%emt 0:01:42]} dxc4 {[%emt 0:06:07]} 8. Bxc4 {[%emt 0:00:20]} O-O {[%emt 0:00:02]} 9. O-O {[%emt 0:00:43]} f5 {[%emt 0:00:19]} 10. Rb1 {[%emt 0:04:43]} a5 {[%emt 0:03:47]} 11. a3 {[%emt 0:02:56]} Nd7 {[%emt 0:00:21]} 12. b4 {[%emt 0:02:42]} axb4 {[%emt 0:00:45]} 13. axb4 {[%emt 0:00:08]} c5 $2 {[%emt 0:00:06]} 14. bxc5 {[%emt 0:01:45]} Nxc5 {[%emt 0:00:17]} 15. Qc2 {[%emt 0:03:27]} Ne4 $16 {[%emt 0:03:46]} 16. Rfc1 {[%emt 0:05:27]} Nxc3 {[%emt 0:26:03]} 17. Qxc3 {[%emt 0:00:47]} Qd6 {[%emt 0:00:01]} 18. g3 {[%emt 0:06:38]} f4 {[%emt 0:03:10]} 19. gxf4 {[%emt 0:05:21]} Bf5 {[%emt 0:02:33]} 20. Qb4 {[%emt 0:03:12]} Qd8 {[%emt 0:04:29]} 21. Ra1 {[%emt 0:01:28]} Rb8 {[%emt 0:00:43]} 22. Bf1 {[%emt 0:10:46]} Re8 {[%emt 0:09:46]} 23. Ra7 {[%emt 0:03:17]} Be4 {[%emt 0:00:57]} 24. Bg2 {[%emt 0:02:21]} Bf8 {[%emt 0:04:24]} 25. Qc4 {[%emt 0:03:58]} Qd7 {[%emt 0:08:11]} 26. Ne5 {[%emt 0:04:28]} Rxe5 {[%emt 0:05:26]} 27. fxe5 {[%emt 0:00:08]} Qg4 {[%emt 0:00:45]} 28. Qf1 {[%emt 0:00:14]} Bc6 {[%emt 0:02:53]} 29. h3 {[%emt 0:01:37]} Qxg2+ {[%emt 0:06:07]} 30. Qxg2 {[%emt 0:00:17]} Bxg2 {[%emt 0:00:02]} 31. Kxg2 {[%emt 0:00:07]} b5 {[%emt 0:00:02]} 32. Rcc7 {[%emt 0:00:19]} b4 {[%emt 0:00:01]} 33. Rxf7 {[%emt 0:01:27]} b3 {[%emt 0:00:06]} 34. Rfb7 {[%emt 0:00:13]} 1-0

[Event "Kuwait Championship Stage-I 2024"]
[Site "Qadsiya"]
[Date "2024.01.26"]
[Round "4.2"]
[White "Al Ibrahim, Abdulrahman"]
[Black "Hussain, Hashem"]
[Result "1-0"]
[ECO "B70"]
[WhiteElo "1854"]
[BlackElo "1642"]
[Annotator "NA RC COMBH"]
[PlyCount "60"]
[EventDate "2024.01.22"]
[EventType "swiss"]
[EventCountry "KUW"]
[SourceTitle "playchess.com"]
[Source "ChessBase"]
[SourceQuality "1"]
[TimeControl "5400+30"]

1. e4 {[%emt 0:00:03]} c5 {[%emt 0:00:12]} 2. Nf3 {[%emt 0:00:06]} d6 {[%emt 0:00:09]} 3. d4 {[%emt 0:00:06]} cxd4 {[%emt 0:00:08]} 4. Nxd4 {[%emt 0:00:05]} Nf6 {[%emt 0:00:12]} 5. Nc3 {[%emt 0:00:05]} g6 {[%emt 0:00:45]} 6. Bc4 {[%emt 0:00:40]} (6. Be3 $14 {feels stronger.}) 6... Bg7 {[%emt 0:00:30]} 7. O-O {[%emt 0:00:07]} O-O {[%emt 0:00:23]} 8. Re1 {[%emt 0:00:14]} Nc6 {[%emt 0:04:52]} 9. Nb3 {[%emt 0:01:21]} a5 {[%emt 0:03:03]} 10. a4 {[%emt 0:00:38]} Bd7 {[%emt 0:04:55]} 11. Nd5 {[%emt 0:05:43]} Rc8 {[%emt 0:09:12]} 12. Bf1 {[%emt 0:05:08]} Be6 {[%emt 0:07:39]} (12... e6 $14 13. Nxf6+ Bxf6) 13. c3 {[%emt 0:01:08]} Nd7 $16 {[%emt 0:04:17]} 14. h3 {[%emt 0:14:24]} f6 {[%emt 0:10:12]} 15. f4 {[%emt 0:07:41]} Bf7 {[%emt 0:05:55]} 16. f5 {[%emt 0:03:44]} Nce5 {[%emt 0:05:14]} 17. Nd4 {[%emt 0:04:30]} Nc5 {[%emt 0:07:22]} 18. Nb5 {[%emt 0:10:18]} Kh8 {[%emt 0:04:10]} 19. Kh1 {[%emt 0:04:21]} Rg8 {[%emt 0:07:08]} 20. b4 {[%emt 0:08:26]} axb4 {[%emt 0:01:55]} 21. cxb4 {[%emt 0:00:20]} Na6 {[%emt 0:00:47]} 22. Rb1 {[%emt 0:01:30]} gxf5 {[%emt 0:04:16]} 23. exf5 {[%emt 0:01:02]} Bf8 {[%emt 0:01:24]} 24. Be3 {[%emt 0:03:25]} Rc6 {[%emt 0:04:21]} 25. Na7 {[%emt 0:03:56]} Bxd5 {[%emt 0:03:48]} 26. Qxd5 {[%emt 0:00:06]} Rc2 {[%emt 0:06:11]} 27. Qxb7 {[%emt 0:00:45]} Nc7 {[%emt 0:01:19]} 28. Rbc1 {[%emt 0:00:50]} Rxc1 {[%emt 0:02:23]} 29. Rxc1 {[%emt 0:00:04]} Rg3 {[%emt 0:01:34]} 30. Rxc7 {[%emt 0:06:54]} Rxe3 {[%emt 0:01:14]} 1-0

[Event "Kuwait Championship Stage-I 2024"]
[Site "Qadsiya"]
[Date "2024.01.26"]
[Round "4.3"]
[White "Almohammad, Hamad"]
[Black "Alhejab, Meshal"]
[Result "0-1"]
[ECO "D00"]
[WhiteElo "1296"]
[BlackElo "1787"]
[Annotator "NA RC COMBH"]
[PlyCount "72"]
[EventDate "2024.01.22"]
[EventType "swiss"]
[EventCountry "KUW"]
[SourceTitle "playchess.com"]
[Source "ChessBase"]
[SourceQuality "1"]
[TimeControl "5400+30"]

1. d4 {[%emt 0:00:01]} Nf6 {[%emt 0:08:55]} 2. Bf4 {[%emt 0:00:21]} e6 {[%emt 0:00:21]} 3. e3 {[%emt 0:00:13]} d5 {[%emt 0:00:22]} 4. Bd3 {[%emt 0:00:16]} c5 {[%emt 0:00:18]} 5. c3 {[%emt 0:00:18]} Qb6 {[%emt 0:04:26]} 6. Qb3 {[%emt 0:01:10]} c4 {[%emt 0:00:52]} 7. Qxb6 {[%emt 0:00:15]} axb6 {[%emt 0:00:14]} 8. Bc2 {[%emt 0:00:53]} Nc6 {[%emt 0:02:03]} 9. Nf3 {[%emt 0:00:52]} b5 {[%emt 0:01:33]} 10. Nbd2 {[%emt 0:01:21]} b4 {[%emt 0:01:38]} 11. O-O {[%emt 0:01:00]} Nh5 {[%emt 0:02:41]} 12. cxb4 {[%emt 0:08:00]} Nxb4 {[%emt 0:03:19]} 13. Rfc1 {[%emt 0:01:25]} Nxf4 {[%emt 0:04:30]} 14. exf4 {[%emt 0:00:22]} Bd6 {[%emt 0:01:14]} 15. g3 {[%emt 0:04:21]} Rxa2 {[%emt 0:06:26]} 16. Rxa2 {[%emt 0:00:15]} Nxa2 {[%emt 0:00:07]} 17. Ra1 {[%emt 0:00:13]} Nb4 {[%emt 0:00:27]} 18. Ra8 {[%emt 0:06:31]} Ke7 {[%emt 0:02:11]} 19. Bxh7 {[%emt 0:13:24]} g6 {[%emt 0:03:02]} 20. h4 {[%emt 0:01:51]} Kd7 {[%emt 0:04:03]} 21. Ng5 {[%emt 0:00:27]} Be7 {[%emt 0:00:51]} 22. Ndf3 {[%emt 0:18:08]} Bxg5 {[%emt 0:08:22]} 23. Nxg5 {[%emt 0:05:45]} f6 {[%emt 0:01:29]} 24. Nxe6 {[%emt 0:00:57]} Kxe6 {[%emt 0:00:30]} 25. Bxg6 {[%emt 0:00:30]} f5 {[%emt 0:02:22]} 26. f3 {[%emt 0:02:50]} Kf6 {[%emt 0:06:57]} 27. h5 {[%emt 0:00:17]} Nc6 {[%emt 0:04:14]} 28. g4 {[%emt 0:01:37]} Nxd4 {[%emt 0:05:37]} 29. Kf2 {[%emt 0:01:32]} Kg7 {[%emt 0:00:46]} 30. Ke3 {[%emt 0:00:51]} Nc6 {[%emt 0:00:43]} 31. Bxf5 {[%emt 0:00:32]} d4+ {[%emt 0:00:12]} 32. Kd2 {[%emt 0:03:32]} Bxf5 {[%emt 0:01:51]} 33. h6+ {[%emt 0:03:31]} Kh7 {[%emt 0:00:25]} 34. Ra4 {[%emt 0:00:52]} b5 {[%emt 0:00:10]} 35. Ra6 {[%emt 0:00:35]} Bd7 {[%emt 0:00:20]} 36. Rb6 {[%emt 0:00:37]} Rb8 {[%emt 0:00:39]} 0-1

[Event "Kuwait Championship Stage-I 2024"]
[Site "Qadsiya"]
[Date "2024.01.26"]
[Round "4.4"]
[White "Al-Hajiri, Bader"]
[Black "Alenezi, Hamad"]
[Result "0-1"]
[ECO "B12"]
[WhiteElo "1890"]
[BlackElo "1419"]
[Annotator "NA RC COMBH"]
[PlyCount "64"]
[EventDate "2024.01.22"]
[EventType "swiss"]
[EventCountry "KUW"]
[SourceTitle "playchess.com"]
[Source "ChessBase"]
[SourceQuality "1"]
[TimeControl "5400+30"]

1. e4 {[%emt 0:00:09]} c6 {[%emt 0:00:54]} 2. d4 {[%emt 0:00:22]} d5 {[%emt 0:00:09]} 3. e5 {[%emt 0:00:27]} e6 {[%emt 0:01:55]} 4. f4 {[%emt 0:01:32]} c5 {[%emt 0:01:53]} 5. Nf3 {[%emt 0:00:18]} Nc6 {[%emt 0:00:14]} 6. c3 {[%emt 0:00:24]} cxd4 {[%emt 0:05:33]} 7. cxd4 {[%emt 0:00:35]} Nge7 {[%emt 1:23:22]} 8. Bd3 {[%emt 0:01:11]} g6 {[%emt 0:00:00]} 9. Nc3 {[%emt 0:01:30]} Nf5 $14 {[%emt 0:00:00]} 10. Bxf5 {[%emt 0:02:06]} gxf5 {[%emt 0:00:00]} 11. Ng5 {[%emt 0:00:15]} h5 {[%emt 0:00:00]} 12. Ne2 {[%emt 0:07:05]} Be7 {[%emt 0:00:00]} 13. h4 {[%emt 0:00:53]} Qb6 {[%emt 0:00:00]} 14. b3 {[%emt 0:00:28]} Bd7 {[%emt 0:00:00]} 15. Be3 {[%emt 0:02:05]} Bxg5 {[%emt 0:00:00]} 16. hxg5 {[%emt 0:00:17]} O-O-O {[%emt 0:00:00]} 17. Ng3 {[%emt 0:02:17]} h4 {[%emt 0:00:00]} 18. Nh5 {[%emt 0:00:13]} Rxh5 {[%emt 0:00:00]} 19. Qxh5 {[%emt 0:00:14]} Qb4+ {[%emt 0:00:00]} 20. Kf2 {[%emt 0:00:39]} Nxd4 {[%emt 0:00:00]} 21. a3 {[%emt 0:00:32]} Qxb3 {[%emt 0:00:00]} 22. Bxd4 {[%emt 0:01:19]} Qg3+ {[%emt 0:00:00]} 23. Kg1 {[%emt 0:00:06]} Qxf4 {[%emt 0:00:00]} 24. Rxh4 {[%emt 0:00:50]} Qd2 {[%emt 0:00:00]} 25. Bxa7 {[%emt 0:00:33]} Bc6 {[%emt 0:00:00]} 26. Bb6 {[%emt 0:00:48]} d4 {[%emt 0:00:00]} 27. Rh2 {[%emt 0:00:14]} Qb2 {[%emt 0:00:51]} 28. Rf1 {[%emt 0:02:17]} Qxb6 {[%emt 0:00:15]} 29. Qxf7 {[%emt 0:00:05]} d3+ {[%emt 0:00:23]} 30. Kh1 {[%emt 0:00:03]} d2 {[%emt 0:05:30]} 31. Qxe6+ {[%emt 0:00:19]} Kb8 {[%emt 0:00:14]} 32. Rd1 {[%emt 0:00:02]} Qf2 {[%emt 0:00:32]} 0-1

[Event "Kuwait Championship Stage-I 2024"]
[Site "Qadsiya"]
[Date "2024.01.26"]
[Round "4.5"]
[White "Eidi, Eisa"]
[Black "AlShourfaa, Hazaa"]
[Result "0-1"]
[ECO "D02"]
[WhiteElo "1306"]
[BlackElo "1701"]
[Annotator "NA RC COMBH"]
[PlyCount "97"]
[EventDate "2024.01.22"]
[EventType "swiss"]
[EventCountry "KUW"]
[SourceTitle "playchess.com"]
[Source "ChessBase"]
[SourceQuality "1"]
[TimeControl "5400+30"]

1. d4 {[%emt 0:00:02]} d5 {[%emt 0:11:13]} 2. Nf3 {[%emt 0:00:08]} Nc6 {[%emt 0:00:18]} 3. g3 {[%emt 0:00:43]} Bg4 {[%emt 0:00:10]} 4. Bg2 {[%emt 0:00:09]} Qd7 {[%emt 0:00:12]} 5. Ne5 {[%emt 0:06:13]} Nxe5 {[%emt 0:00:18]} 6. dxe5 {[%emt 0:00:09]} O-O-O {[%emt 0:00:21]} 7. h3 {[%emt 0:02:11]} Bh5 {[%emt 0:00:05]} 8. b3 {[%emt 0:00:37]} e6 {[%emt 0:00:38]} 9. Bb2 {[%emt 0:00:37]} Bc5 {[%emt 0:02:44]} 10. O-O {[%emt 0:02:09]} Ne7 {[%emt 0:01:31]} 11. Nd2 {[%emt 0:01:00]} Bg6 {[%emt 0:00:19]} 12. c4 {[%emt 0:05:55]} dxc4 {[%emt 0:00:57]} 13. Nxc4 {[%emt 0:01:19]} Qxd1 {[%emt 0:08:28]} 14. Rfxd1 {[%emt 0:03:23]} Nf5 {[%emt 0:00:24]} 15. Na5 {[%emt 0:11:05]} c6 {[%emt 0:04:04]} 16. Nc4 {[%emt 0:01:46]} Nxg3 {[%emt 0:00:19]} 17. e3 {[%emt 0:08:39]} Nf5 {[%emt 0:03:05]} 18. a3 {[%emt 0:04:50]} Bh5 {[%emt 0:00:51]} 19. Rdc1 {[%emt 0:01:20]} Be7 {[%emt 0:04:24]} 20. b4 {[%emt 0:04:57]} Nh4 {[%emt 0:01:42]} 21. Bd4 {[%emt 0:07:16]} Nxg2 {[%emt 0:10:34]} 22. Kxg2 {[%emt 0:01:29]} b6 {[%emt 0:00:25]} 23. Nd6+ {[%emt 0:05:37]} Bxd6 {[%emt 0:01:04]} 24. exd6 {[%emt 0:00:06]} Kd7 {[%emt 0:00:59]} 25. f4 {[%emt 0:02:13]} f6 {[%emt 0:03:50]} 26. e4 {[%emt 0:01:11]} Kxd6 {[%emt 0:00:19]} 27. e5+ {[%emt 0:28:56]} Kc7 28. Bf2 {[%emt 0:00:00]} Rd2 {[%emt 0:02:15]} 29. Rc3 {[%emt 0:00:00]} fxe5 {[%emt 0:01:41]} 30. Rac1 {[%emt 0:00:00]} Be8 {[%emt 0:00:42]} 31. Kg1 {[%emt 0:00:00]} exf4 {[%emt 0:01:06]} 32. Re1 {[%emt 0:00:00]} Bd7 {[%emt 0:04:52]} 33. Re4 {[%emt 0:00:00]} Rf8 {[%emt 0:01:41]} 34. Rf3 {[%emt 0:00:00]} g5 {[%emt 0:00:35]} 35. h4 {[%emt 0:00:00]} h6 {[%emt 0:00:16]} 36. hxg5 {[%emt 0:00:00]} hxg5 {[%emt 0:00:01]} 37. Be1 {[%emt 0:00:00]} Rd5 {[%emt 0:01:19]} 38. Bc3 {[%emt 0:00:00]} Kd6 {[%emt 0:00:32]} 39. Bg7 {[%emt 0:00:00]} Rff5 {[%emt 0:01:52]} 40. Rh3 {[%emt 0:00:00]} a5 {[%emt 0:07:34]} 41. Bc3 {[%emt 0:00:00]} axb4 {[%emt 0:00:45]} 42. axb4 {[%emt 0:00:00]} Rd1+ {[%emt 0:01:39]} 43. Kf2 {[%emt 0:00:00]} Kd5 {[%emt 0:00:23]} 44. Re2 {[%emt 0:00:00]} Kc4 {[%emt 0:02:14]} 45. Re4+ {[%emt 0:00:00]} Kd5 {[%emt 0:00:06]} 46. Re2 {[%emt 0:00:00]} g4 {[%emt 0:00:15]} 47. Rh7 {[%emt 0:00:00]} Kd6 {[%emt 0:05:44]} 48. Bd2 {[%emt 0:00:00]} f3 {[%emt 0:00:12]} 49. Re3 {[%emt 0:00:00]} 0-1

[Event "Kuwait Championship Stage-I 2024"]
[Site "Qadsiya"]
[Date "2024.01.26"]
[Round "4.6"]
[White "Alrashidi, Yousef"]
[Black "Alrefae, Ahmad"]
[Result "0-1"]
[ECO "B56"]
[WhiteElo "1512"]
[BlackElo "1338"]
[Annotator "NA RC COMBH"]
[PlyCount "82"]
[EventDate "2024.01.22"]
[EventType "swiss"]
[EventCountry "KUW"]
[SourceTitle "playchess.com"]
[Source "ChessBase"]
[SourceQuality "1"]
[TimeControl "5400+30"]

1. e4 {[%emt 0:04:53]} c5 {[%emt 0:00:08]} 2. Nf3 {[%emt 0:00:08]} d6 {[%emt 0:00:05]} 3. d4 {[%emt 0:00:09]} cxd4 {[%emt 0:00:05]} 4. Nxd4 {[%emt 0:00:12]} Nf6 {[%emt 0:00:06]} 5. Nc3 {[%emt 0:00:10]} g6 {[%emt 0:00:06]} 6. Bd3 {[%emt 0:00:29]} Bg7 {[%emt 0:00:18]} 7. O-O {[%emt 0:00:16]} O-O {[%emt 0:00:22]} 8. h3 {[%emt 0:00:28]} Nc6 {[%emt 0:00:12]} 9. Nxc6 {[%emt 0:00:50]} bxc6 {[%emt 0:00:04]} 10. Rb1 {[%emt 0:01:40]} a5 {[%emt 0:07:34]} 11. a4 {[%emt 0:02:38]} d5 {[%emt 0:12:41]} 12. exd5 {[%emt 0:04:50]} cxd5 {[%emt 0:00:23]} 13. Nb5 {[%emt 0:01:01]} e5 {[%emt 0:04:50]} 14. Bg5 {[%emt 0:02:12]} Bb7 {[%emt 0:09:15]} 15. c3 {[%emt 0:03:06]} Qd7 {[%emt 0:01:45]} 16. Re1 {[%emt 0:03:33]} h6 {[%emt 0:10:00]} 17. Bh4 {[%emt 0:01:28]} Nh5 {[%emt 0:01:17]} 18. Qg4 {[%emt 0:20:03]} Qc6 {[%emt 0:01:22]} 19. Bf5 {[%emt 0:09:35]} Nf4 {[%emt 0:21:22]} 20. Bd7 {[%emt 0:00:52]} Qc5 {[%emt 0:00:44]} 21. b4 {[%emt 0:00:33]} axb4 {[%emt 0:00:11]} 22. cxb4 {[%emt 0:00:34]} Qc4 {[%emt 0:01:22]} 23. Nd6 {[%emt 0:03:39]} Qc7 {[%emt 0:09:49]} 24. Nb5 {[%emt 0:00:53]} Qc4 {[%emt 0:01:05]} 25. Be7 {[%emt 0:01:54]} f5 {[%emt 0:01:07]} 26. Qd1 {[%emt 0:03:39]} Rf7 {[%emt 0:05:41]} 27. Nd6 {[%emt 0:03:02]} Qc7 {[%emt 0:00:17]} 28. Nxf7 {[%emt 0:05:19]} Kxf7 {[%emt 0:00:16]} 29. Bxf5 {[%emt 0:01:10]} gxf5 {[%emt 0:00:31]} 30. Bc5 {[%emt 0:00:52]} d4 {[%emt 0:00:52]} 31. f3 {[%emt 0:03:24]} Qd8 {[%emt 0:02:49]} 32. Qc2 {[%emt 0:01:59]} Qg5 {[%emt 0:00:53]} 33. Kh2 {[%emt 0:06:58]} d3 {[%emt 0:02:59]} 34. Qf2 {[%emt 0:01:51]} Rxa4 {[%emt 0:00:55]} 35. Be3 {[%emt 0:01:34]} Bd5 {[%emt 0:01:18]} 36. h4 {[%emt 0:00:43]} Qf6 {[%emt 0:01:02]} 37. Bxf4 {[%emt 0:01:17]} exf4 {[%emt 0:00:26]} 38. Red1 {[%emt 0:01:30]} Ra2 {[%emt 0:00:49]} 39. Rd2 {[%emt 0:02:24]} Rxd2 {[%emt 0:00:25]} 40. Qxd2 {[%emt 0:00:02]} Qxh4+ {[%emt 0:00:08]} 41. Kg1 {[%emt 0:00:03]} Bd4+ {[%emt 0:00:14]} 0-1